fUSD/lending_fUSD_20241207
["ID","MTS","AMOUNT","RATE_DAILY","PERIOD"]
[344534933,1733537461749,-500.0,0.00010955,2]
[344534934,1733537461759,-574.62,0.00010955,2]
[344534935,1733537461768,-507.11,0.00010955,2]
[344534936,1733537461777,-561.87,0.00010955,2]
[344534937,1733537461787,-630.75,0.00010955,2]
[344534938,1733537461797,-500.0,0.00010955,2]
[344534939,1733537461806,-500.0,0.00010955,2]
[344534940,1733537461816,-958.27,0.00010955,2]
[344534941,1733537461825,-500.0,0.00010955,2]
[344534942,1733537461838,-1099.36,0.00010955,2]
[344534943,1733537461847,-500.0,0.00010955,2]
[344534944,1733537461857,-500.0,0.00010955,2]
[344534945,1733537461867,-1285.82,0.00010955,2]
[344534946,1733537461877,-1464.66,0.00010955,2]
[344534947,1733537461891,-500.0,0.00010955,2]
[344534948,1733537461900,-500.0,0.00010955,2]
[344534949,1733537461910,-500.0,0.00010955,2]
[344534950,1733537461920,-500.0,0.00010955,2]
[344534951,1733537461930,-500.0,0.00010955,2]
[344534952,1733537461940,-500.0,0.00010955,2]
[344534953,1733537461949,-1119.59,0.00010955,2]
[344534954,1733537461958,-500.0,0.00010955,2]
[344534955,1733537461968,-794.33,0.00010955,2]
[344534956,1733537461977,-500.0,0.00010955,2]
[344534957,1733537461987,-500.0,0.00010955,2]
[344534958,1733537461997,-500.0,0.00010955,2]
[344534959,1733537462007,-569.48,0.00010955,2]
[344534960,1733537462017,-558.22185657,0.00010955,2]
[344534961,1733537462026,-500.0,0.00010955,2]
[344534962,1733537462036,-500.0,0.00010955,2]
[344534963,1733537462046,-500.0,0.00010955,2]
[344534964,1733537462056,-500.0,0.00010955,2]
[344534965,1733537462066,-500.0,0.00010955,2]
[344534966,1733537462075,-500.0,0.00010955,2]
[344534967,1733537462089,-173.25697467,0.00010955,2]
[344534968,1733537462099,-500.0,0.00010955,2]
[344534969,1733537462109,-940.67,0.00010955,2]
[344534970,1733537462120,-500.0,0.00010955,2]
[344534971,1733537462131,-584.26,0.00010955,2]
[344534972,1733537462141,-1198.88,0.00010955,2]
[344534973,1733537462151,-607.45,0.00010955,2]
[344534974,1733537462161,-500.0,0.00010955,2]
[344534975,1733537462170,-500.0,0.00010955,2]
[344534976,1733537462179,-500.0,0.00010955,2]
[344534977,1733537462188,-500.0,0.00010955,2]
[344534978,1733537462198,-983.98,0.00010955,2]
[344534979,1733537462207,-500.0,0.00010955,2]
[344534980,1733537462217,-679.16,0.00010955,2]
[344534981,1733537462227,-1075.79,0.00010955,2]
[344534982,1733537462237,-500.0,0.00010955,2]
[344534983,1733537462248,-500.0,0.00010955,2]
[344534984,1733537462258,-500.0,0.00010955,2]
[344534985,1733537462267,-733.78,0.00010955,2]
[344534986,1733537462276,-592.95,0.00010955,2]
[344534987,1733537462286,-500.0,0.00010955,2]
[344534988,1733537462296,-500.0,0.00010955,2]
[344534989,1733537462305,-1043.19,0.00010955,2]
[344534990,1733537462315,-500.0,0.00010955,2]
[344534991,1733537462324,-588.58,0.00010955,2]
[344534992,1733537462335,-500.0,0.00010955,2]
[344534993,1733537462346,-581.87,0.00010955,2]
[344534994,1733537462355,-306.43434779,0.00010955,2]
[344534995,1733537462365,-500.0,0.00010955,2]
[344534996,1733537462375,-483.61234623,0.00010955,2]
[344534997,1733537462384,-835.12,0.00010955,2]
[344534998,1733537462395,-530.69,0.00010955,2]
[344534999,1733537462405,-544.29,0.00010955,2]
[344535000,1733537462415,-500.0,0.00010955,2]
[344535001,1733537462425,-500.0,0.00010956,2]
[344535002,1733537462436,-500.0,0.00010956,2]
[344535003,1733537462445,-500.0,0.00010956,2]
[344535004,1733537462454,-500.0,0.00010956,2]
[344535005,1733537462464,-500.0,0.00010956,2]
[344535006,1733537462474,-406.69816662,0.00010956,2]
[344535007,1733537462484,-500.0,0.00010956,2]
[344535008,1733537462494,-500.50048832,0.00010956,2]
[344535009,1733537462503,-500.0,0.00010956,2]
[344535010,1733537462513,-500.0,0.00010956,2]
[344535011,1733537462522,-500.0,0.00010956,2]
[344535012,1733537462530,-500.0,0.00010956,2]
[344535013,1733537462540,-500.0,0.00010956,2]
[344535014,1733537462549,-500.0,0.00010956,2]
[344535015,1733537462557,-500.0,0.00010956,2]
[344535016,1733537462567,-500.0,0.00010956,2]
[344535017,1733537462576,-500.0,0.00010956,2]
[344535018,1733537462590,-500.0,0.00010956,2]
[344535019,1733537462599,-500.0,0.00010956,2]
[344535020,1733537462609,-500.0,0.00010956,2]
[344535021,1733537462619,-500.0,0.00010956,2]
[344535022,1733537462629,-500.0,0.00010956,2]
[344535023,1733537462639,-500.0,0.00010956,2]
[344535024,1733537462648,-500.0,0.00010956,2]
[344535025,1733537462658,-500.0,0.00010956,2]
[344535026,1733537462668,-500.0,0.00010956,2]
[344535027,1733537462678,-500.0,0.00010956,2]
[344535028,1733537462687,-500.0,0.00010956,2]
[344535029,1733537462698,-1000.0,0.00010957,2]
[344535030,1733537462708,-200.0,0.00010959,2]
[344535031,1733537462718,-200.0,0.00010959,2]
[344535032,1733537462728,-8500.0,0.00010959,2]
[344535033,1733537462737,-150.0,0.00010959,2]
[344535034,1733537462747,-463.49906142,0.00010959,2]
[344535035,1733537462756,-3235.238,0.00010973,2]
[344535036,1733537462765,-175.273,0.00010973,2]
[344535037,1733537462775,-3523.04,0.00011,2]
[344535038,1733537462785,-1298.929,0.00011,3]
[344535039,1733537462795,-255.0,0.00011037,2]
[344535040,1733537462804,-500.15893208,0.00011104,2]
[344535041,1733537462813,-151.4354817,0.00011104,2]
[344535042,1733537462823,-164.96,0.0001111,2]
[344535043,1733537462834,-214.52413707,0.00011143,2]
[344535044,1733537462844,-13870.93898179,0.00011171,2]
[344535045,1733537462853,-1050.3,0.00011227,2]
[344535046,1733537462863,-500.0,0.00011227,2]
[344535047,1733537462872,-1597.53,0.00011227,2]
[344535048,1733537462882,-1400.57,0.00011227,2]
[344535049,1733537462892,-365.302161,0.00011227,2]
[344535050,1733537462901,-548.55,0.00011227,2]
[344535051,1733537462910,-1766.81,0.00011227,2]
[344535052,1733537462919,-6143.12,0.00011227,2]
[344535053,1733537462928,-1488.72,0.00011227,2]
[344535054,1733537462938,-832.22,0.00011227,2]
[344535055,1733537462948,-525.94,0.00011227,2]
[344535056,1733537462957,-881.78,0.00011227,2]
[344535057,1733537462967,-1317.97,0.00011227,2]
[344535058,1733537462976,-500.0,0.00011227,2]
[344535059,1733537462986,-1288.04,0.00011227,2]
[344535060,1733537462996,-500.0,0.00011227,2]
[344535061,1733537463005,-545.05,0.00011227,2]
[344535062,1733537463014,-1581.01,0.00011227,2]
[344535063,1733537463024,-1641.76,0.00011227,2]
[344535064,1733537463034,-721.09,0.00011227,2]
[344535065,1733537463043,-835.39,0.00011227,2]
[344535066,1733537463053,-2710.58,0.00011227,2]
[344535067,1733537463062,-500.0,0.00011227,2]
[344535068,1733537463072,-1386.68,0.00011227,2]
[344535069,1733537463085,-8757.87,0.00011227,2]
[344535070,1733537463095,-500.0,0.00011227,2]
[344535071,1733537463105,-3403.53,0.00011227,2]
[344535072,1733537463115,-2678.48,0.00011227,2]
[344535073,1733537463125,-936.22,0.00011227,2]
[344535074,1733537463135,-876.67,0.00011227,2]
[344535075,1733537463146,-500.0,0.00011227,2]
[344535076,1733537463156,-4610.02,0.00011227,2]
[344535077,1733537463167,-500.0,0.00011227,2]
[344535078,1733537463177,-1590.58,0.00011227,2]
[344535079,1733537463188,-571.55,0.00011227,2]
[344535080,1733537463199,-1388.66,0.00011227,2]
[344535081,1733537463210,-500.0,0.00011227,2]
[344535082,1733537463221,-9896.25,0.00011227,2]
[344535083,1733537463231,-500.0,0.00011227,2]
[344535084,1733537463242,-811.95,0.00011227,2]
[344535085,1733537463253,-500.0,0.00011227,2]
[344535086,1733537463263,-1248.83,0.00011227,2]
[344535087,1733537463274,-500.0,0.00011227,2]
[344535088,1733537463284,-945.51,0.00011227,2]
[344535089,1733537463295,-500.0,0.00011227,2]
[344535090,1733537463305,-8439.08,0.00011227,2]
[344535091,1733537463315,-331.00146045,0.00011227,2]
[344535092,1733537463325,-500.0,0.00011227,2]
[344535093,1733537463339,-500.0,0.00011227,2]
[344535094,1733537463352,-500.0,0.00011227,2]
[344535095,1733537463362,-2764.02,0.00011227,2]
[344535096,1733537463373,-1408.69,0.00011227,2]
[344535097,1733537463384,-1121.13,0.00011227,2]
[344535098,1733537463396,-1072.4,0.00011227,2]
[344535099,1733537463407,-1000.0,0.00011228,2]
[344535100,1733537463418,-192.34468019,0.00011228,2]
[344535101,1733537463428,-500.0,0.00011228,2]
[344535102,1733537463438,-1140.1,0.00011228,2]
[344535103,1733537463448,-1462.62,0.00011228,2]
[344535104,1733537463458,-2115.81,0.00011228,2]
[344535105,1733537463468,-1415.45,0.00011228,2]
[344535106,1733537463478,-500.0,0.00011228,2]
[344535107,1733537463489,-500.0,0.00011228,2]
[344535108,1733537463499,-500.0,0.00011228,2]
[344535109,1733537463508,-421.56453928,0.00011228,2]
[344535110,1733537463519,-609.04,0.00011228,2]
[344535111,1733537463529,-819.45,0.00011228,2]
[344535112,1733537463539,-1046.78,0.00011228,2]
[344535113,1733537463550,-950.43,0.00011228,2]
[344535114,1733537463560,-500.0,0.00011228,2]
[344535115,1733537463570,-500.0,0.00011228,2]
[344535116,1733537463580,-804.93,0.00011228,2]
[344535117,1733537463592,-500.0,0.00011228,2]
[344535118,1733537463602,-500.0,0.00011228,2]
[344535119,1733537463612,-1117.46,0.00011228,2]
[344535120,1733537463622,-568.07690744,0.00011228,2]
[344535121,1733537463632,-721.67,0.00011228,2]
[344535122,1733537463642,-563.82,0.00011228,2]
[344535123,1733537463652,-500.0,0.00011228,2]
[344535124,1733537463662,-890.81,0.00011228,2]
[344535125,1733537463672,-500.0,0.00011228,2]
[344535126,1733537463682,-500.0,0.00011228,2]
[344535127,1733537463692,-500.0,0.00011228,2]
[344535128,1733537463702,-288.86861466,0.00011228,2]
[344535129,1733537463712,-500.0,0.00011228,2]
[344535130,1733537463721,-773.09,0.00011228,2]
[344535131,1733537463732,-611.78,0.00011228,2]
[344535132,1733537463742,-708.34,0.00011228,2]
[344535133,1733537463752,-500.0,0.00011228,2]
[344535134,1733537463762,-1172.09,0.00011228,2]
[344535135,1733537463772,-1122.04,0.00011228,2]
[344535136,1733537463782,-500.0,0.00011228,2]
[344535137,1733537463793,-536.64,0.00011228,2]
[344535138,1733537463804,-500.0,0.00011228,2]
[344535139,1733537463814,-1195.36,0.00011228,2]
[344535140,1733537463824,-1204.41,0.00011228,2]
[344535141,1733537463836,-500.0,0.00011228,2]
[344535142,1733537463846,-500.0,0.00011228,2]
[344535143,1733537463856,-500.0,0.00011228,2]
[344535144,1733537463867,-500.0,0.00011228,2]
[344535145,1733537463876,-1277.16,0.00011228,2]
[344535146,1733537463887,-723.36,0.00011228,2]
[344535147,1733537463898,-1141.67,0.00011228,2]
[344535148,1733537463908,-500.0,0.00011228,2]
[344535149,1733537463919,-626.89,0.00011228,2]
[344535150,1733537464143,-500.0,0.00011228,2]
[344535151,1733537464153,-561.29,0.00011228,2]
[344535152,1733537464163,-500.0,0.00011228,2]
[344535153,1733537464172,-508.89129864,0.00011228,2]
[344535154,1733537464181,-952.18,0.00011228,2]
[344535155,1733537464191,-940.5,0.00011228,2]
[344535156,1733537464201,-500.0,0.00011228,2]
[344535157,1733537464210,-500.0,0.00011228,2]
[344535158,1733537464220,-500.0,0.00011228,2]
[344535159,1733537464229,-867.31,0.00011228,2]
[344535160,1733537464240,-841.91,0.00011228,2]
[344535161,1733537464249,-500.0,0.00011228,2]
[344535162,1733537464259,-500.0,0.00011228,2]
[344535163,1733537464268,-598.02,0.00011228,2]
[344535164,1733537464278,-500.0,0.00011228,2]
[344535165,1733537464287,-500.0,0.00011228,2]
[344535166,1733537464297,-409.79091767,0.00011228,2]
[344535167,1733537464306,-500.0,0.00011228,2]
[344535168,1733537464316,-500.0,0.00011228,2]
[344535169,1733537464326,-519.16,0.00011228,2]
[344535170,1733537464337,-1077.49,0.00011228,2]
[344535171,1733537464350,-500.0,0.00011228,2]
[344535172,1733537464359,-503.35,0.00011228,2]
[344535173,1733537464368,-500.0,0.00011228,2]
[344535174,1733537464378,-500.0,0.00011228,2]
[344535175,1733537464390,-963.09,0.00011228,2]
[344535176,1733537464400,-1121.84,0.00011228,2]
[344535177,1733537464410,-625.34,0.00011228,2]
[344535178,1733537464421,-500.0,0.00011228,2]
[344535179,1733537464430,-500.0,0.00011228,2]
[344535180,1733537464440,-705.73,0.00011228,2]
[344535181,1733537464449,-500.0,0.00011228,2]
[344535182,1733537464458,-500.0,0.00011228,2]
[344535183,1733537464467,-576.6,0.00011228,2]
[344535184,1733537464477,-500.0,0.00011228,2]
[344535185,1733537464487,-500.0,0.00011228,2]
[344535186,1733537464496,-500.0,0.00011228,2]
[344535187,1733537464506,-500.0,0.00011228,2]
[344535188,1733537464515,-500.0,0.00011228,2]
[344535189,1733537464525,-427.77927866,0.00011228,2]
[344535190,1733537464534,-500.0,0.00011228,2]
[344535191,1733537464544,-515.19,0.00011228,2]
[344535192,1733537464554,-660.5,0.00011228,2]
[344535193,1733537464563,-500.0,0.00011228,2]
[344535194,1733537464573,-500.0,0.00011228,2]
[344535195,1733537464582,-500.0,0.00011228,2]
[344535196,1733537464594,-892.96,0.00011228,2]
[344535197,1733537464603,-1345.19,0.00011228,2]
[344535198,1733537464613,-567.63,0.00011228,2]
[344535199,1733537464622,-500.0,0.00011228,2]
[344535200,1733537464632,-712.16,0.00011228,2]
[344535201,1733537464641,-500.0,0.00011228,2]
[344535202,1733537464651,-500.0,0.00011228,2]
[344535203,1733537464660,-870.39,0.00011228,2]
[344535204,1733537464669,-500.0,0.00011228,2]
[344535205,1733537464679,-500.0,0.00011228,2]
[344535206,1733537464689,-500.0,0.00011228,2]
[344535207,1733537464698,-820.34,0.00011228,2]
[344535208,1733537464708,-588.07,0.00011228,2]
[344535209,1733537464717,-500.0,0.00011228,2]
[344535210,1733537464727,-500.0,0.00011228,2]
[344535211,1733537464737,-820.76,0.00011228,2]
[344535212,1733537464747,-854.13,0.00011228,2]
[344535213,1733537464757,-500.0,0.00011228,2]
[344535214,1733537464767,-550.88,0.00011228,2]
[344535215,1733537464777,-500.0,0.00011228,2]
[344535216,1733537464787,-500.0,0.00011228,2]
[344535217,1733537464797,-500.0,0.00011228,2]
[344535218,1733537464806,-778.07,0.00011228,2]
[344535219,1733537464815,-1181.78,0.00011228,2]
[344535220,1733537464825,-500.0,0.00011228,2]
[344535221,1733537464836,-500.0,0.00011228,2]
[344535222,1733537464847,-582.48,0.00011228,2]
[344535223,1733537464858,-2295.52,0.00011228,2]
[344535224,1733537464868,-799.05,0.00011228,2]
[344535225,1733537464877,-829.82,0.00011228,2]
[344535226,1733537464887,-794.15,0.00011228,2]
[344535227,1733537464897,-500.0,0.00011228,2]
[344535228,1733537464907,-500.0,0.00011228,2]
[344535229,1733537464916,-724.21,0.00011228,2]
[344535230,1733537464926,-500.0,0.00011228,2]
[344535231,1733537464935,-500.0,0.00011228,2]
[344535232,1733537464944,-664.86,0.00011228,2]
[344535233,1733537464955,-989.21,0.00011228,2]
[344535234,1733537464964,-849.12,0.00011228,2]
[344535235,1733537464974,-500.0,0.00011228,2]
[344535236,1733537464983,-500.0,0.00011228,2]
[344535237,1733537464992,-500.0,0.00011228,2]
[344535238,1733537465001,-500.0,0.00011228,2]
[344535239,1733537465010,-500.0,0.00011228,2]
[344535240,1733537465020,-500.0,0.00011228,2]
[344535241,1733537465030,-509.57,0.00011228,2]
[344535242,1733537465040,-713.01,0.00011228,2]
[344535243,1733537465050,-500.0,0.00011228,2]
[344535244,1733537465060,-500.0,0.00011228,2]
[344535245,1733537465069,-679.55,0.00011228,2]
[344535246,1733537465079,-560.76,0.00011228,2]
[344535247,1733537465091,-500.0,0.00011228,2]
[344535248,1733537465100,-500.0,0.00011228,2]
[344535249,1733537465110,-500.0,0.00011228,2]
[344535250,1733537465120,-500.0,0.00011228,2]
[344535251,1733537465130,-1346.56,0.00011228,2]
[344535252,1733537465139,-989.19,0.00011228,2]
[344535253,1733537465149,-1211.19,0.00011228,2]
[344535254,1733537465159,-500.0,0.00011228,2]
[344535255,1733537465168,-1833.64,0.00011228,2]
[344535256,1733537465176,-500.0,0.00011228,2]
[344535257,1733537465185,-500.0,0.00011228,2]
[344535258,1733537465195,-589.26,0.00011228,2]
[344535259,1733537465204,-500.0,0.00011228,2]
[344535260,1733537465213,-500.0,0.00011228,2]
[344535261,1733537465223,-921.57,0.00011228,2]
[344535262,1733537465232,-1281.93,0.00011228,2]
[344535263,1733537465242,-500.0,0.00011228,2]
[344535264,1733537465251,-736.24,0.00011228,2]
[344535265,1733537465261,-500.0,0.00011228,2]
[344535266,1733537465270,-500.0,0.00011228,2]
[344535267,1733537465279,-500.0,0.00011228,2]
[344535268,1733537465288,-529.97,0.00011228,2]
[344535269,1733537465298,-500.0,0.00011228,2]
[344535270,1733537465307,-780.19,0.00011228,2]
[344535271,1733537465316,-563.6860292,0.00011228,2]
[344535272,1733537465326,-655.95,0.00011228,2]
[344535273,1733537465337,-911.08,0.00011228,2]
[344535274,1733537465350,-500.0,0.00011228,2]
[344535275,1733537465359,-530.43,0.00011228,2]
[344535276,1733537465369,-873.22,0.00011228,2]
[344535277,1733537465378,-1140.22,0.00011228,2]
[344535278,1733537465388,-627.08,0.00011228,2]
[344535279,1733537465397,-500.0,0.00011228,2]
[344535280,1733537465406,-643.92,0.00011228,2]
[344535281,1733537465416,-2433.75,0.00011228,2]
[344535282,1733537465426,-501.01221064,0.00011228,2]
[344535283,1733537465435,-500.0,0.00011228,2]
[344535284,1733537465444,-1430.18,0.00011228,2]
[344535285,1733537465453,-500.0,0.00011228,2]
[344535286,1733537465463,-782.99,0.00011228,2]
[344535287,1733537465471,-2284.01,0.00011228,2]
[344535288,1733537465479,-780.92,0.00011228,2]
[344535289,1733537465488,-500.0,0.00011228,2]
[344535290,1733537465497,-500.0,0.00011228,2]
[344535291,1733537465506,-693.87,0.00011228,2]
[344535292,1733537465515,-509.76,0.00011228,2]
[344535293,1733537465524,-831.52,0.00011228,2]
[344535294,1733537465533,-500.0,0.00011228,2]
[344535295,1733537465543,-714.59,0.00011228,2]
[344535296,1733537465552,-1380.02,0.00011228,2]
[344535297,1733537465562,-823.48,0.00011228,2]
[344535298,1733537465571,-893.2,0.00011228,2]
[344535299,1733537465580,-500.0,0.00011228,2]
[344535300,1733537465591,-1734.35,0.00011228,2]
[344535301,1733537465600,-814.35,0.00011228,2]
[344535302,1733537465609,-500.0,0.00011228,2]
[344535303,1733537465619,-3768.03,0.00011228,2]
[344535304,1733537465628,-582.08,0.00011228,2]
[344535305,1733537465637,-830.35,0.00011228,2]
[344535306,1733537465646,-975.77,0.00011228,2]
[344535307,1733537465655,-500.0,0.00011228,2]
[344535308,1733537465665,-500.0,0.00011228,2]
[344535309,1733537465674,-7359.0,0.00011228,2]
[344535310,1733537465683,-3459.63,0.00011228,2]
[344535311,1733537465692,-500.0,0.00011228,2]
[344535312,1733537465702,-769.9,0.00011228,2]
[344535313,1733537465711,-500.0,0.00011228,2]
[344535314,1733537465720,-500.0,0.00011228,2]
[344535315,1733537465730,-1346.14,0.00011228,2]
[344535316,1733537465739,-964.1,0.00011228,2]
[344535317,1733537465748,-1200.0,0.00011228,2]
[344535318,1733537465757,-1060.98,0.00011228,2]
[344535319,1733537465766,-2194.59,0.00011228,2]
[344535320,1733537465775,-1828.43,0.00011228,2]
[344535321,1733537465784,-500.0,0.00011228,2]
[344535322,1733537465794,-500.0,0.00011228,2]
[344535323,1733537465803,-500.0,0.00011228,2]
[344535324,1733537465812,-535.97,0.00011228,2]
[344535325,1733537465821,-500.0,0.00011228,2]
[344535326,1733537465831,-10224.43,0.00011228,2]
[344535327,1733537465843,-564.88,0.00011228,2]
[344535328,1733537465852,-848.28,0.00011228,2]
[344535329,1733537465861,-2147.92,0.00011228,2]
[344535330,1733537465870,-2112.65,0.00011228,2]
[344535331,1733537465880,-500.0,0.00011228,2]
[344535332,1733537465889,-967.65,0.00011228,2]
[344535333,1733537465899,-500.0,0.00011228,2]
[344535334,1733537465908,-2046.48,0.00011228,2]
[344535335,1733537465917,-674.48,0.00011228,2]
[344535336,1733537465926,-1371.16,0.00011228,2]
[344535337,1733537465936,-500.0,0.00011228,2]
[344535338,1733537465944,-1082.33,0.00011228,2]
[344535339,1733537465954,-500.0,0.00011228,2]
[344535340,1733537465963,-9124.76,0.00011228,2]
[344535341,1733537465972,-837.66,0.00011228,2]
[344535342,1733537465981,-500.0,0.00011228,2]
[344535343,1733537465990,-567.79,0.00011228,2]
[344535344,1733537466000,-679.51,0.00011228,2]
[344535345,1733537466010,-500.0,0.00011228,2]
[344535346,1733537466019,-1047.21,0.00011228,2]
[344535347,1733537466028,-500.0,0.00011228,2]
[344535348,1733537466037,-621.96,0.00011228,2]
[344535349,1733537466047,-500.0,0.00011228,2]
[344535350,1733537466056,-500.0,0.00011228,2]
[344535351,1733537466065,-500.0,0.00011228,2]
[344535352,1733537466075,-1080.14,0.00011228,2]
[344535353,1733537466084,-500.0,0.00011228,2]
[344535354,1733537466094,-628.02,0.00011228,2]
[344535355,1733537466104,-500.0,0.00011228,2]
[344535356,1733537466113,-500.0,0.00011228,2]
[344535357,1733537466123,-1351.25,0.00011228,2]
[344535358,1733537466133,-1754.98,0.00011228,2]
[344535359,1733537466143,-5506.2,0.00011228,2]
[344535360,1733537466153,-3200.75,0.00011228,2]
[344535361,1733537466163,-536.93,0.00011228,2]
[344535362,1733537466172,-500.0,0.00011228,2]
[344535363,1733537466180,-500.0,0.00011228,2]
[344535364,1733537466190,-1297.69,0.00011228,2]
[344535365,1733537466200,-500.0,0.00011228,2]
[344535366,1733537466210,-1217.46,0.00011228,2]
[344535367,1733537466220,-500.0,0.00011228,2]
[344535368,1733537466229,-500.0,0.00011228,2]
[344535369,1733537466239,-1520.75,0.00011228,2]
[344535370,1733537466250,-500.0,0.00011228,2]
[344535371,1733537466259,-5161.49,0.00011228,2]
[344535372,1733537466269,-525.72,0.00011228,2]
[344535373,1733537466278,-500.0,0.00011228,2]
[344535374,1733537466288,-4752.83,0.00011228,2]
[344535375,1733537466298,-500.0,0.00011228,2]
[344535376,1733537466307,-579.7,0.00011228,2]
[344535377,1733537466316,-1013.93,0.00011228,2]
[344535378,1733537466326,-500.0,0.00011228,2]
[344535379,1733537466338,-500.0,0.00011228,2]
[344535380,1733537466350,-500.0,0.00011228,2]
[344535381,1733537466359,-1478.17,0.00011228,2]
[344535382,1733537466368,-980.16,0.00011228,2]
[344535383,1733537466377,-2253.52,0.00011228,2]
[344535384,1733537466388,-529.93,0.00011228,2]
[344535385,1733537466397,-589.51,0.00011228,2]
[344535386,1733537466406,-846.32,0.00011228,2]
[344535387,1733537466415,-634.76,0.00011228,2]
[344535388,1733537466425,-1592.53,0.00011228,2]
[344535389,1733537466434,-500.0,0.00011228,2]
[344535390,1733537466443,-500.0,0.00011228,2]
[344535391,1733537466452,-806.38,0.00011228,2]
[344535392,1733537466463,-500.0,0.00011228,2]
[344535393,1733537466472,-987.46,0.00011228,2]
[344535394,1733537466482,-500.0,0.00011228,2]
[344535395,1733537466492,-678.97,0.00011228,2]
[344535396,1733537466501,-527.38,0.00011228,2]
[344535397,1733537466512,-500.0,0.00011228,2]
[344535398,1733537466523,-845.26,0.00011228,2]
[344535399,1733537466532,-618.23,0.00011228,2]
[344535400,1733537466542,-718.78,0.00011228,2]
[344535401,1733537466551,-500.0,0.00011228,2]
[344535402,1733537466561,-500.0,0.00011228,2]
[344535403,1733537466570,-500.0,0.00011228,2]
[344535404,1733537466578,-500.0,0.00011228,2]
[344535405,1733537466587,-700.38,0.00011228,2]
[344535406,1733537466597,-2142.56,0.00011228,2]
[344535407,1733537466606,-500.0,0.00011228,2]
[344535408,1733537466616,-1006.68,0.00011228,2]
[344535409,1733537466625,-500.0,0.00011228,2]
[344535410,1733537466635,-500.0,0.00011228,2]
[344535411,1733537466645,-500.0,0.00011228,2]
[344535412,1733537466654,-601.72,0.00011228,2]
[344535413,1733537466663,-500.0,0.00011228,2]
[344535414,1733537466673,-810.93,0.00011228,2]
[344535415,1733537466685,-500.0,0.00011228,2]
[344535416,1733537466695,-500.0,0.00011228,2]
[344535417,1733537466704,-500.0,0.00011228,2]
[344535418,1733537466712,-500.0,0.00011228,2]
[344535419,1733537466721,-2711.3,0.00011228,2]
[344535420,1733537466731,-1456.41,0.00011228,2]
[344535421,1733537466740,-552.66,0.00011228,2]
[344535422,1733537466749,-1264.39,0.00011228,2]
[344535423,1733537466759,-742.7,0.00011228,2]
[344535424,1733537466769,-500.0,0.00011228,2]
[344535425,1733537466778,-500.0,0.00011228,2]
[344535426,1733537466789,-500.0,0.00011228,2]
[344535427,1733537466798,-500.0,0.00011228,2]
[344535428,1733537466807,-500.0,0.00011228,2]
[344535429,1733537466817,-1614.85,0.00011228,2]
[344535430,1733537466827,-500.0,0.00011229,2]
[344535431,1733537466836,-500.0,0.00011229,2]
[344535432,1733537466846,-935.29,0.00011229,2]